[Event "Early-Titled-Tuesday-Blitz-October-24-2023"]
[Site "Chess.com"]
[Date "2023.10.24"]
[Round "7"]
[White "pedro_gines"]
[Black "ProfessorChess101"]
[Result "1/2-1/2"]
[WhiteElo "2738"]
[BlackElo "2556"]
[TimeControl "180+1"]
[EndTime "9:15:51 PDT"]
[Termination "Game drawn by repetition"]

1. c4 {[%clk 0:03:00.9]} 1... c6 {[%clk 0:02:58.3]} 2. d4 {[%clk 0:03:00.5]}
2... d5 {[%clk 0:02:58.5]} 3. Nf3 {[%clk 0:03:00.8]} 3... Nf6 {[%clk 0:02:58.3]}
4. e3 {[%clk 0:02:57.1]} 4... e6 {[%clk 0:02:58.4]} 5. Be2 {[%clk 0:02:57.3]}
5... Nbd7 {[%clk 0:02:58.3]} 6. O-O {[%clk 0:02:57.9]} 6... Bd6 {[%clk
0:02:56.7]} 7. b3 {[%clk 0:02:58.2]} 7... e5 {[%clk 0:02:52.4]} 8. dxe5 {[%clk
0:02:56.8]} 8... Nxe5 {[%clk 0:02:52.3]} 9. Bb2 {[%clk 0:02:56.6]} 9... Qe7
{[%clk 0:02:47.2]} 10. cxd5 {[%clk 0:02:52.7]} 10... Nxd5 {[%clk 0:02:47.4]} 11.
Nc3 {[%clk 0:02:50.9]} 11... Nxc3 {[%clk 0:02:45.8]} 12. Bxc3 {[%clk 0:02:51.5]}
12... O-O {[%clk 0:02:45.8]} 13. h3 {[%clk 0:02:39.5]} 13... Bf5 {[%clk
0:02:40.2]} 14. Nd4 {[%clk 0:02:33.8]} 14... Bg6 {[%clk 0:02:36.9]} 15. Qc1
{[%clk 0:02:11.6]} 15... Nd7 {[%clk 0:02:28.7]} 16. Qb2 {[%clk 0:02:07.7]} 16...
Ba3 {[%clk 0:02:15.3]} 17. Qd2 {[%clk 0:02:08.1]} 17... Nf6 {[%clk 0:02:13.3]}
18. f3 {[%clk 0:02:08.1]} 18... Rad8 {[%clk 0:02:10.7]} 19. b4 {[%clk
0:01:57.7]} 19... Nd5 {[%clk 0:02:08.1]} 20. Kf2 {[%clk 0:01:44]} 20... Nxc3
{[%clk 0:01:57.2]} 21. Qxc3 {[%clk 0:01:44.9]} 21... Bxb4 {[%clk 0:01:57.7]} 22.
Qb3 {[%clk 0:01:34.8]} 22... Bc5 {[%clk 0:01:56.2]} 23. Rad1 {[%clk 0:01:31.6]}
23... Rfe8 {[%clk 0:01:53.6]} 24. Rfe1 {[%clk 0:01:26.6]} 24... h6 {[%clk
0:01:27.7]} 25. g3 {[%clk 0:01:25]} 25... Qf6 {[%clk 0:01:06.6]} 26. Qc3 {[%clk
0:01:13.2]} 26... Bb6 {[%clk 0:00:54.7]} 27. Bf1 {[%clk 0:01:00.3]} 27... Qe5
{[%clk 0:00:47.5]} 28. f4 {[%clk 0:00:57.9]} 28... Qf6 {[%clk 0:00:42.8]} 29.
Bg2 {[%clk 0:00:53.9]} 29... Be4 {[%clk 0:00:42.6]} 30. Bxe4 {[%clk 0:00:50.9]}
30... Rxe4 {[%clk 0:00:43.5]} 31. Kf3 {[%clk 0:00:46.5]} 31... Bxd4 {[%clk
0:00:39.4]} 32. exd4 {[%clk 0:00:45.8]} 32... Rxe1 {[%clk 0:00:35.6]} 33. Rxe1
{[%clk 0:00:45.2]} 33... Qxd4 {[%clk 0:00:30.2]} 34. Re8+ {[%clk 0:00:44.5]}
34... Kh7 {[%clk 0:00:30.8]} 35. Qxd4 {[%clk 0:00:36.3]} 35... Rxd4 {[%clk
0:00:30.5]} 36. Re7 {[%clk 0:00:37.2]} 36... Rd3+ {[%clk 0:00:28.7]} 37. Kg4
{[%clk 0:00:35.3]} 37... f5+ {[%clk 0:00:23.6]} 38. Kh4 {[%clk 0:00:14.3]} 38...
b5 {[%clk 0:00:14.7]} 39. Rxa7 {[%clk 0:00:14.2]} 39... c5 {[%clk 0:00:14.6]}
40. Ra5 {[%clk 0:00:13.3]} 40... c4 {[%clk 0:00:12.3]} 41. Rxb5 {[%clk
0:00:13.5]} 41... Kg6 {[%clk 0:00:11]} 42. Rc5 {[%clk 0:00:08.9]} 42... Rc3
{[%clk 0:00:09.7]} 43. a4 {[%clk 0:00:08.4]} 43... Rc1 {[%clk 0:00:10.3]} 44. a5
{[%clk 0:00:08.5]} 44... c3 {[%clk 0:00:09.7]} 45. a6 {[%clk 0:00:08.2]} 45...
Ra1 {[%clk 0:00:07.7]} 46. Rc6+ {[%clk 0:00:04.6]} 46... Kh7 {[%clk 0:00:07.4]}
47. Rxc3 {[%clk 0:00:05.5]} 47... Rxa6 {[%clk 0:00:07.3]} 48. Rc7 {[%clk
0:00:05.4]} 48... Ra4 {[%clk 0:00:06.3]} 49. Rc6 {[%clk 0:00:03.4]} 49... Ra3
{[%clk 0:00:05.4]} 50. Rc5 {[%clk 0:00:03]} 50... Kg6 {[%clk 0:00:05.1]} 51.
Rc6+ {[%clk 0:00:03.7]} 51... Kh7 {[%clk 0:00:05.6]} 52. Rc7 {[%clk 0:00:04.6]}
52... Rb3 {[%clk 0:00:05]} 53. Rc6 {[%clk 0:00:05]} 53... Ra3 {[%clk 0:00:04.5]}
1/2-1/2

[Event "Early-Titled-Tuesday-Blitz-October-24-2023"]
[Site "Chess.com"]
[Date "2023.10.24"]
[Round "7"]
[White "lefonghua"]
[Black "Nitzan_Steinberg"]
[Result "1-0"]
[WhiteElo "2700"]
[BlackElo "2871"]
[TimeControl "180+1"]
[EndTime "9:15:53 PDT"]
[Termination "lefonghua won by resignation"]

1. d4 {[%clk 0:03:00.9]} 1... Nf6 {[%clk 0:02:59.9]} 2. c4 {[%clk 0:03:01]} 2...
g6 {[%clk 0:03:00.5]} 3. Nc3 {[%clk 0:03:01.4]} 3... Bg7 {[%clk 0:03:01.2]} 4.
e4 {[%clk 0:03:01.8]} 4... d6 {[%clk 0:03:02]} 5. f4 {[%clk 0:03:02.4]} 5... O-O
{[%clk 0:03:01.4]} 6. Nf3 {[%clk 0:03:02.3]} 6... c5 {[%clk 0:03:00.5]} 7. d5
{[%clk 0:03:02.6]} 7... e6 {[%clk 0:03:00.5]} 8. Be2 {[%clk 0:03:02.7]} 8...
exd5 {[%clk 0:02:59.3]} 9. cxd5 {[%clk 0:03:03.6]} 9... Re8 {[%clk 0:02:59.9]}
10. Nd2 {[%clk 0:03:03.6]} 10... Na6 {[%clk 0:02:51.5]} 11. O-O {[%clk
0:03:02.8]} 11... c4 {[%clk 0:02:48.5]} 12. a4 {[%clk 0:02:43.9]} 12... Nb4
{[%clk 0:02:31.7]} 13. Bf3 {[%clk 0:02:30.5]} 13... Qb6+ {[%clk 0:02:21.3]} 14.
Kh1 {[%clk 0:02:22.8]} 14... Nd3 {[%clk 0:02:22.2]} 15. Nxc4 {[%clk 0:02:13.2]}
15... Nf2+ {[%clk 0:02:22.2]} 16. Rxf2 {[%clk 0:02:13.7]} 16... Qxf2 {[%clk
0:02:22.9]} 17. Nxd6 {[%clk 0:02:12.1]} 17... Rd8 {[%clk 0:02:17.5]} 18. e5
{[%clk 0:02:07.7]} 18... Ng4 {[%clk 0:02:09.4]} 19. Nxc8 {[%clk 0:01:58]} 19...
Ne3 {[%clk 0:01:44.4]} 20. Ne7+ {[%clk 0:01:51.6]} 20... Kf8 {[%clk 0:01:44.1]}
21. Bxe3 {[%clk 0:01:44]} 21... Qxe3 {[%clk 0:01:44.4]} 22. d6 {[%clk
0:01:40.5]} 22... Qxf4 {[%clk 0:01:44.5]} 23. Bxb7 {[%clk 0:01:36.9]} 23... Bxe5
{[%clk 0:00:42.9]} 24. g3 {[%clk 0:01:31.5]} 24... Qb4 {[%clk 0:00:38.5]} 25.
Bxa8 {[%clk 0:01:26.5]} 25... Qxb2 {[%clk 0:00:38.7]} 26. Bg2 {[%clk 0:01:16.6]}
26... Qxc3 {[%clk 0:00:28.2]} 27. Rc1 {[%clk 0:01:12.1]} 27... Rxd6 {[%clk
0:00:28.6]} 28. Nd5 {[%clk 0:01:09.4]} 28... Qb2 {[%clk 0:00:27.3]} 29. Rb1
{[%clk 0:01:01.2]} 29... Qa2 {[%clk 0:00:24]} 30. Qb3 {[%clk 0:00:59.9]} 30...
Qd2 {[%clk 0:00:20.6]} 31. Qf3 {[%clk 0:00:55.7]} 31... Kg7 {[%clk 0:00:18.9]}
32. Rf1 {[%clk 0:00:55.1]} 32... Rd7 {[%clk 0:00:16]} 33. Qe4 {[%clk 0:00:53.9]}
33... Qb2 {[%clk 0:00:14.6]} 34. a5 {[%clk 0:00:50.3]} 34... h5 {[%clk
0:00:13.9]} 35. a6 {[%clk 0:00:49.5]} 35... Rd6 {[%clk 0:00:11.2]} 36. Re1
{[%clk 0:00:45.9]} 36... Rxa6 {[%clk 0:00:06.3]} 37. Qxe5+ {[%clk 0:00:44.7]}
37... Qxe5 {[%clk 0:00:07.2]} 38. Rxe5 {[%clk 0:00:45]} 38... Ra1+ {[%clk
0:00:08]} 39. Bf1 {[%clk 0:00:45.4]} 39... Rxf1+ {[%clk 0:00:08.7]} 40. Kg2
{[%clk 0:00:46.1]} 40... Ra1 {[%clk 0:00:08.9]} 41. Re7 {[%clk 0:00:45.7]} 41...
Ra2+ {[%clk 0:00:06.2]} 42. Kg1 {[%clk 0:00:46]} 42... a5 {[%clk 0:00:06.2]} 43.
Ra7 {[%clk 0:00:44.3]} 43... g5 {[%clk 0:00:04]} 44. Nb6 {[%clk 0:00:37.8]}
44... Kf6 {[%clk 0:00:04.1]} 45. Nc4 {[%clk 0:00:37.7]} 45... a4 {[%clk
0:00:04.5]} 46. Ra5 {[%clk 0:00:36.5]} 46... h4 {[%clk 0:00:02.9]} 47. gxh4
{[%clk 0:00:36.4]} 47... gxh4 {[%clk 0:00:03.8]} 48. h3 {[%clk 0:00:37.1]} 48...
Ke6 {[%clk 0:00:04.3]} 49. Re5+ {[%clk 0:00:33.1]} 49... Kf6 {[%clk 0:00:04.4]}
50. Ra5 {[%clk 0:00:32.1]} 50... Ke6 {[%clk 0:00:04.1]} 51. Nb6 {[%clk
0:00:32.6]} 51... a3 {[%clk 0:00:03.7]} 52. Nc4 {[%clk 0:00:32.3]} 52... Ra1+
{[%clk 0:00:04.3]} 53. Kg2 {[%clk 0:00:32.7]} 53... a2 {[%clk 0:00:05.2]} 54.
Nd2 {[%clk 0:00:27.8]} 54... f5 {[%clk 0:00:05]} 55. Nf3 {[%clk 0:00:20.4]}
55... f4 {[%clk 0:00:04.7]} 56. Nxh4 {[%clk 0:00:20.7]} 56... Kd6 {[%clk
0:00:04.7]} 57. Nf3 {[%clk 0:00:20.6]} 57... Kc6 {[%clk 0:00:05.3]} 58. h4
{[%clk 0:00:20.7]} 58... Kb6 {[%clk 0:00:06]} 59. Ra8 {[%clk 0:00:21]} 59... Kc5
{[%clk 0:00:06.2]} 60. h5 {[%clk 0:00:21.5]} 60... Kc4 {[%clk 0:00:02.2]} 61. h6
{[%clk 0:00:21.9]} 61... Kd3 {[%clk 0:00:02.5]} 62. h7 {[%clk 0:00:20.9]} 1-0

[Event "Early-Titled-Tuesday-Blitz-October-24-2023"]
[Site "Chess.com"]
[Date "2023.10.24"]
[Round "7"]
[White "Hovik_Hayrapetyan"]
[Black "Suleyman_Chess06"]
[Result "1-0"]
[WhiteElo "2812"]
[BlackElo "2600"]
[TimeControl "180+1"]
[EndTime "9:15:54 PDT"]
[Termination "Hovik_Hayrapetyan won by checkmate"]

1. d4 {[%clk 0:03:00.9]} 1... d5 {[%clk 0:02:58.8]} 2. c4 {[%clk 0:03:00.7]}
2... dxc4 {[%clk 0:02:58.9]} 3. Nf3 {[%clk 0:02:59.9]} 3... Nf6 {[%clk
0:02:59.4]} 4. e3 {[%clk 0:02:57.9]} 4... e6 {[%clk 0:02:59.7]} 5. Bxc4 {[%clk
0:02:57]} 5... c5 {[%clk 0:03:00.3]} 6. O-O {[%clk 0:02:54.9]} 6... a6 {[%clk
0:03:01]} 7. b3 {[%clk 0:02:50.9]} 7... b5 {[%clk 0:03:01]} 8. Be2 {[%clk
0:02:50.6]} 8... Bb7 {[%clk 0:03:00.7]} 9. a4 {[%clk 0:02:50.7]} 9... b4 {[%clk
0:03:00.8]} 10. Nbd2 {[%clk 0:02:50.2]} 10... Nbd7 {[%clk 0:03:01.5]} 11. Nc4
{[%clk 0:02:49.9]} 11... Be7 {[%clk 0:03:00.7]} 12. Bb2 {[%clk 0:02:49.6]} 12...
O-O {[%clk 0:03:00.3]} 13. Nfe5 {[%clk 0:02:45.4]} 13... Nxe5 {[%clk 0:02:57.5]}
14. dxe5 {[%clk 0:02:45.4]} 14... Nd5 {[%clk 0:02:54.7]} 15. Qc2 {[%clk
0:02:36.2]} 15... Qc7 {[%clk 0:02:49.8]} 16. a5 {[%clk 0:02:25.8]} 16... Rfd8
{[%clk 0:02:49.4]} 17. f4 {[%clk 0:02:14.8]} 17... Bc6 {[%clk 0:02:45.6]} 18.
Bd3 {[%clk 0:01:56.2]} 18... g6 {[%clk 0:02:42.9]} 19. f5 {[%clk 0:01:41.8]}
19... exf5 {[%clk 0:02:32.7]} 20. Bxf5 {[%clk 0:01:41.4]} 20... Bg5 {[%clk
0:02:07.4]} 21. e6 {[%clk 0:01:36.4]} 21... f6 {[%clk 0:01:54.2]} 22. Be4 {[%clk
0:01:12]} 22... Nxe3 {[%clk 0:01:51.6]} 23. Nxe3 {[%clk 0:01:11]} 23... Bxe3+
{[%clk 0:01:51.6]} 24. Kh1 {[%clk 0:01:11.6]} 24... Rd2 {[%clk 0:01:51.8]} 25.
Qc4 {[%clk 0:00:59]} 25... Rxb2 {[%clk 0:01:48.8]} 26. e7+ {[%clk 0:00:54.8]}
26... Kg7 {[%clk 0:01:48.1]} 27. Qe6 {[%clk 0:00:50.7]} 27... Bxe4 {[%clk
0:01:10.3]} 28. Qxf6+ {[%clk 0:00:50.8]} 28... Kh6 {[%clk 0:01:10.3]} 29. Qh4+
{[%clk 0:00:42.8]} 29... Kg7 {[%clk 0:01:09.1]} 30. Qf6+ {[%clk 0:00:39.3]}
30... Kh6 {[%clk 0:01:09]} 31. Qxb2 {[%clk 0:00:29]} 31... Qxe7 {[%clk
0:01:04.2]} 32. Rae1 {[%clk 0:00:28.4]} 32... Bd4 {[%clk 0:01:00.2]} 33. Qc1+
{[%clk 0:00:20.3]} 33... Kg7 {[%clk 0:01:00.2]} 34. Rf4 {[%clk 0:00:18.9]} 34...
Bxg2+ {[%clk 0:00:37.7]} 35. Kxg2 {[%clk 0:00:19.8]} 35... Qg5+ {[%clk
0:00:37.9]} 36. Kh3 {[%clk 0:00:09.9]} 36... Qh5+ {[%clk 0:00:27.9]} 37. Kg2
{[%clk 0:00:10.3]} 37... Qd5+ {[%clk 0:00:24.2]} 38. Rf3 {[%clk 0:00:09.2]}
38... Rf8 {[%clk 0:00:21.7]} 39. Rf1 {[%clk 0:00:09.5]} 39... Qe4 {[%clk
0:00:18.9]} 40. Qd2 {[%clk 0:00:07]} 40... Rf5 {[%clk 0:00:14.7]} 41. h3 {[%clk
0:00:06.5]} 41... h5 {[%clk 0:00:10.9]} 42. Qe1 {[%clk 0:00:06.5]} 42... Qc2+
{[%clk 0:00:09.5]} 43. Kh1 {[%clk 0:00:06.6]} 43... Be5 {[%clk 0:00:07.7]} 44.
Qf2 {[%clk 0:00:05.3]} 44... Qe4 {[%clk 0:00:05.1]} 45. Qg2 {[%clk 0:00:04.7]}
45... Rxf3 {[%clk 0:00:03.1]} 46. Rxf3 {[%clk 0:00:05.6]} 46... Qd4 {[%clk
0:00:03]} 47. Rf1 {[%clk 0:00:04.6]} 47... Qd7 {[%clk 0:00:02.5]} 48. Qf3 {[%clk
0:00:04.1]} 48... Bf6 {[%clk 0:00:02.8]} 49. Qxf6+ {[%clk 0:00:03.9]} 49... Kh6
{[%clk 0:00:03.4]} 50. Qf8+ {[%clk 0:00:04.3]} 50... Kg5 {[%clk 0:00:03.7]} 51.
Qf4# {[%clk 0:00:03.9]} 1-0

[Event "Early-Titled-Tuesday-Blitz-October-24-2023"]
[Site "Chess.com"]
[Date "2023.10.24"]
[Round "7"]
[White "JoliyRoger"]
[Black "Kildepiotr"]
[Result "1/2-1/2"]
[WhiteElo "2479"]
[BlackElo "2659"]
[TimeControl "180+1"]
[EndTime "9:15:54 PDT"]
[Termination "Game drawn by repetition"]

1. Nf3 {[%clk 0:03:00.9]} 1... g6 {[%clk 0:02:57]} 2. d4 {[%clk 0:03:00.4]} 2...
Bg7 {[%clk 0:02:57.1]} 3. c4 {[%clk 0:03:01.1]} 3... d6 {[%clk 0:02:56.8]} 4. h3
{[%clk 0:03:00]} 4... Nd7 {[%clk 0:02:57.2]} 5. e4 {[%clk 0:02:57.8]} 5... e5
{[%clk 0:02:57.2]} 6. d5 {[%clk 0:02:57.9]} 6... Ngf6 {[%clk 0:02:56.7]} 7. Nc3
{[%clk 0:02:57.9]} 7... O-O {[%clk 0:02:57.1]} 8. Bg5 {[%clk 0:02:58.4]} 8... h6
{[%clk 0:02:55.5]} 9. Be3 {[%clk 0:02:59.1]} 9... Nc5 {[%clk 0:02:55.3]} 10. Nd2
{[%clk 0:02:59.6]} 10... Ne8 {[%clk 0:02:51.3]} 11. g4 {[%clk 0:03:00.1]} 11...
f5 {[%clk 0:02:51]} 12. gxf5 {[%clk 0:03:00.7]} 12... gxf5 {[%clk 0:02:51.9]}
13. Rg1 {[%clk 0:03:01.2]} 13... f4 {[%clk 0:02:51.2]} 14. Bxc5 {[%clk
0:03:01.7]} 14... dxc5 {[%clk 0:02:51.4]} 15. Be2 {[%clk 0:02:59.7]} 15... Nd6
{[%clk 0:02:47.5]} 16. Bg4 {[%clk 0:02:59]} 16... Qh4 {[%clk 0:02:44.7]} 17. Qf3
{[%clk 0:02:57.9]} 17... Kh8 {[%clk 0:02:40]} 18. O-O-O {[%clk 0:02:58.3]} 18...
Qe7 {[%clk 0:02:26.8]} 19. Bxc8 {[%clk 0:02:46.7]} 19... Raxc8 {[%clk
0:02:26.9]} 20. Rg6 {[%clk 0:02:47.3]} 20... Rf6 {[%clk 0:02:25.7]} 21. Rg4
{[%clk 0:02:44.8]} 21... Rf7 {[%clk 0:02:17.5]} 22. Rdg1 {[%clk 0:02:45.1]}
22... Rg8 {[%clk 0:02:11.4]} 23. b3 {[%clk 0:02:39.5]} 23... Rff8 {[%clk
0:01:57]} 24. Kc2 {[%clk 0:02:32.2]} 24... Bf6 {[%clk 0:01:56.4]} 25. Nb5 {[%clk
0:01:54.4]} 25... Nf7 {[%clk 0:01:47.9]} 26. Rxg8+ {[%clk 0:01:51.9]} 26... Rxg8
{[%clk 0:01:47.9]} 27. Rxg8+ {[%clk 0:01:52.5]} 27... Kxg8 {[%clk 0:01:48.8]}
28. Qg4+ {[%clk 0:01:52.5]} 28... Kh7 {[%clk 0:01:46.7]} 29. Nxa7 {[%clk
0:01:45.5]} 29... Bh4 {[%clk 0:01:36]} 30. Nc8 {[%clk 0:01:24.6]} 30... Qf6
{[%clk 0:01:28.8]} 31. Qd7 {[%clk 0:00:57.1]} 31... Bxf2 {[%clk 0:01:26.2]} 32.
Nf3 {[%clk 0:00:56.3]} 32... Kg7 {[%clk 0:01:16]} 33. Ne7 {[%clk 0:00:50.9]}
33... Bd4 {[%clk 0:01:11.2]} 34. Nf5+ {[%clk 0:00:47.9]} 34... Kg6 {[%clk
0:01:11.2]} 35. Qe8 {[%clk 0:00:44.3]} 35... Kh5 {[%clk 0:01:06.4]} 36. Qg8
{[%clk 0:00:25.6]} 36... Ng5 {[%clk 0:00:57.8]} 37. Ng7+ {[%clk 0:00:17.8]}
37... Kg6 {[%clk 0:00:57.7]} 38. Ne6+ {[%clk 0:00:16.4]} 38... Kh5 {[%clk
0:00:57.1]} 39. Nexg5 {[%clk 0:00:09.2]} 39... hxg5 {[%clk 0:00:55.7]} 40. Qh7+
{[%clk 0:00:09.8]} 40... Qh6 {[%clk 0:00:55.9]} 41. Qf5 {[%clk 0:00:10.4]} 41...
Qg6 {[%clk 0:00:52.5]} 42. Qg4+ {[%clk 0:00:09.2]} 42... Kh6 {[%clk 0:00:52.3]}
43. a4 {[%clk 0:00:08.4]} 43... Qxe4+ {[%clk 0:00:51.9]} 44. Kc1 {[%clk
0:00:07]} 44... Qe3+ {[%clk 0:00:47.8]} 45. Kc2 {[%clk 0:00:06.1]} 45... Qc3+
{[%clk 0:00:46.2]} 46. Kd1 {[%clk 0:00:05.3]} 46... Qxb3+ {[%clk 0:00:44.7]} 47.
Ke1 {[%clk 0:00:05.8]} 47... Qe3+ {[%clk 0:00:37.9]} 48. Kd1 {[%clk 0:00:06.3]}
48... Qd3+ {[%clk 0:00:33.4]} 49. Ke1 {[%clk 0:00:06.5]} 49... Qb1+ {[%clk
0:00:32.9]} 50. Ke2 {[%clk 0:00:06.7]} 50... Qc2+ {[%clk 0:00:21.3]} 51. Ke1
{[%clk 0:00:07]} 51... Bc3+ {[%clk 0:00:18.2]} 52. Kf1 {[%clk 0:00:07.3]} 52...
Qd1+ {[%clk 0:00:18.5]} 53. Kg2 {[%clk 0:00:07.9]} 53... Qe2+ {[%clk 0:00:18.8]}
54. Kh1 {[%clk 0:00:08.6]} 54... Qf1+ {[%clk 0:00:18.7]} 55. Kh2 {[%clk
0:00:09.1]} 55... Qf2+ {[%clk 0:00:14.9]} 56. Kh1 {[%clk 0:00:09.8]} 56... Qf1+
{[%clk 0:00:08.6]} 57. Kh2 {[%clk 0:00:09.6]} 57... Qf2+ {[%clk 0:00:09.1]} 58.
Kh1 {[%clk 0:00:10.2]} 58... Qf1+ {[%clk 0:00:09.4]} 1/2-1/2

[Event "Early-Titled-Tuesday-Blitz-October-24-2023"]
[Site "Chess.com"]
[Date "2023.10.24"]
[Round "7"]
[White "zverr1"]
[Black "Felix-Rose"]
[Result "1/2-1/2"]
[WhiteElo "2493"]
[BlackElo "2306"]
[TimeControl "180+1"]
[EndTime "9:15:54 PDT"]
[Termination "Game drawn by repetition"]

1. e4 {[%clk 0:03:00.9]} 1... e5 {[%clk 0:02:58.8]} 2. Nf3 {[%clk 0:03:00.4]}
2... Nc6 {[%clk 0:02:59.3]} 3. Bc4 {[%clk 0:03:01.1]} 3... Nf6 {[%clk
0:02:58.5]} 4. Ng5 {[%clk 0:03:01.5]} 4... d5 {[%clk 0:02:58.8]} 5. exd5 {[%clk
0:03:02.4]} 5... Na5 {[%clk 0:02:58.9]} 6. Bb5+ {[%clk 0:03:02.9]} 6... c6
{[%clk 0:02:59.6]} 7. dxc6 {[%clk 0:03:03.8]} 7... bxc6 {[%clk 0:03:00.1]} 8.
Be2 {[%clk 0:03:04.6]} 8... h6 {[%clk 0:02:58.2]} 9. Nh3 {[%clk 0:03:05.2]} 9...
Bd6 {[%clk 0:02:53.1]} 10. d3 {[%clk 0:03:03.9]} 10... O-O {[%clk 0:02:48.2]}
11. Nc3 {[%clk 0:03:04]} 11... c5 {[%clk 0:02:46.6]} 12. Bf3 {[%clk 0:03:00.6]}
12... Rb8 {[%clk 0:02:42.6]} 13. Ng1 {[%clk 0:03:00.5]} 13... Bb7 {[%clk
0:02:33.2]} 14. Bxb7 {[%clk 0:02:57.5]} 14... Rxb7 {[%clk 0:02:34.1]} 15. Nf3
{[%clk 0:02:51.6]} 15... Nc6 {[%clk 0:02:33]} 16. O-O {[%clk 0:02:50.8]} 16...
Nd4 {[%clk 0:02:31.2]} 17. Ne4 {[%clk 0:02:31]} 17... Nd5 {[%clk 0:02:02.5]} 18.
c3 {[%clk 0:02:30.3]} 18... Ne6 {[%clk 0:01:54.3]} 19. Nxd6 {[%clk 0:02:16.3]}
19... Qxd6 {[%clk 0:01:55.2]} 20. Nd2 {[%clk 0:02:03.5]} 20... f5 {[%clk
0:01:53.1]} 21. Nc4 {[%clk 0:02:03]} 21... Qc7 {[%clk 0:01:52.8]} 22. Qe2 {[%clk
0:01:28.4]} 22... Ndf4 {[%clk 0:01:41.3]} 23. Qxe5 {[%clk 0:01:00.4]} 23... Qxe5
{[%clk 0:01:23.2]} 24. Nxe5 {[%clk 0:01:01.3]} 24... Ne2+ {[%clk 0:01:23.2]} 25.
Kh1 {[%clk 0:01:01.4]} 25... Nxc1 {[%clk 0:01:23.5]} 26. Rfxc1 {[%clk
0:00:34.5]} 26... Rxb2 {[%clk 0:01:22.9]} 27. Kg1 {[%clk 0:00:27.6]} 27... Nf4
{[%clk 0:01:18.5]} 28. Nc4 {[%clk 0:00:18.6]} 28... Rbb8 {[%clk 0:00:54.1]} 29.
Rd1 {[%clk 0:00:13.6]} 29... Ne2+ {[%clk 0:00:53.6]} 30. Kf1 {[%clk 0:00:11.7]}
30... Nxc3 {[%clk 0:00:54.5]} 31. Rdc1 {[%clk 0:00:06.6]} 31... Nd5 {[%clk
0:00:52.5]} 32. Ne3 {[%clk 0:00:06.5]} 32... Nf4 {[%clk 0:00:47.2]} 33. Rxc5
{[%clk 0:00:05.7]} 33... Nxd3 {[%clk 0:00:47.6]} 34. Rxf5 {[%clk 0:00:04.1]}
34... Rxf5 {[%clk 0:00:47.5]} 35. Nxf5 {[%clk 0:00:05]} 35... Rf8 {[%clk
0:00:47.6]} 36. g4 {[%clk 0:00:05.2]} 36... g6 {[%clk 0:00:45.2]} 37. Nxh6+
{[%clk 0:00:04.4]} 37... Kh7 {[%clk 0:00:45.4]} 38. g5 {[%clk 0:00:04.5]} 38...
Rxf2+ {[%clk 0:00:44.4]} 39. Kg1 {[%clk 0:00:05.1]} 39... Rb2 {[%clk 0:00:42.7]}
40. Rd1 {[%clk 0:00:04.8]} 40... Ne5 {[%clk 0:00:39.9]} 41. Rd5 {[%clk
0:00:01.6]} 41... Nf3+ {[%clk 0:00:40]} 42. Kf1 {[%clk 0:00:01.4]} 42... Nxh2+
{[%clk 0:00:38.7]} 43. Ke1 {[%clk 0:00:02]} 43... Nf3+ {[%clk 0:00:39.2]} 44.
Kd1 {[%clk 0:00:01.6]} 44... Nxg5 {[%clk 0:00:39.5]} 45. Rxg5 {[%clk 0:00:01.2]}
45... Kxh6 {[%clk 0:00:39.5]} 46. Ra5 {[%clk 0:00:02]} 46... Rb7 {[%clk
0:00:39.9]} 47. Ke2 {[%clk 0:00:02.7]} 47... g5 {[%clk 0:00:39.5]} 48. Kf3
{[%clk 0:00:03.3]} 48... Kh5 {[%clk 0:00:40]} 49. Kg3 {[%clk 0:00:03.8]} 49...
Rc7 {[%clk 0:00:36]} 50. Ra3 {[%clk 0:00:03.7]} 50... Kg6 {[%clk 0:00:30.1]} 51.
Kg4 {[%clk 0:00:03.8]} 51... Rc4+ {[%clk 0:00:30.1]} 52. Kg3 {[%clk 0:00:04.5]}
52... Rc7 {[%clk 0:00:31]} 53. Kg4 {[%clk 0:00:04.4]} 53... Rc4+ {[%clk
0:00:29.3]} 54. Kg3 {[%clk 0:00:04.5]} 54... Rc7 {[%clk 0:00:26.6]} 1/2-1/2